bitfinex/quotes_BTCUSD_20241003
["timestamp","ask_amount","ask_price","bid_price","bid_amount"]
[1727971058424,0.29827061,60764.0,60763.0,0.001636]
[1727971058659,0.38580033,60764.0,60740.0,0.329271]
[1727971058955,0.187606,60751.0,60746.0,0.41334016]
[1727971059192,0.023,60751.0,60748.0,0.164613]
[1727971059412,0.023,60751.0,60747.0,0.164616]
[1727971059622,0.023,60751.0,60744.0,0.32925]
[1727971059834,0.187606,60751.0,60746.0,0.164619]
[1727971060053,0.187606,60751.0,60747.0,0.164616]
[1727971060298,0.187606,60751.0,60744.0,0.32925]
[1727971060750,0.187606,60751.0,60744.0,0.164622]
[1727971060961,0.187606,60751.0,60745.0,0.164621]
[1727971061442,0.004,60751.0,60742.0,0.329258]
[1727971061684,0.027,60751.0,60750.0,0.166245]
[1727971061926,0.004,60751.0,60750.0,0.166245]
[1727971062147,0.005,60751.0,60750.0,0.166245]
[1727971062583,0.004,60751.0,60750.0,0.166245]
[1727971062794,0.005,60751.0,60750.0,0.166245]
[1727971063022,0.1222,60751.0,60750.0,0.001636]
[1727971063246,0.361706,60751.0,60750.0,0.001636]
[1727971063476,0.364706,60751.0,60750.0,0.001636]
[1727971063701,0.361706,60751.0,60750.0,0.003636]
[1727971064171,0.361706,60751.0,60750.0,0.004636]
[1727971064459,0.361706,60751.0,60750.0,0.003636]
[1727971064686,0.364706,60751.0,60750.0,0.003636]
[1727971064906,0.361706,60751.0,60750.0,0.001636]
[1727971065366,0.362706,60751.0,60750.0,0.001636]
[1727971065824,0.361706,60751.0,60750.0,0.001636]
[1727971066092,0.366706,60751.0,60750.0,0.001636]
[1727971066329,0.373706,60751.0,60750.0,0.002636]
[1727971066571,0.51002042,60751.0,60750.0,0.002636]
[1727971067479,0.85874158,60751.0,60750.0,0.002636]
[1727971067758,0.260746,60736.0,60728.0,0.166302]
[1727971068006,0.260746,60736.0,60729.0,0.166301]
[1727971068238,0.260746,60736.0,60730.0,0.24872116]
[1727971068476,0.260746,60736.0,60729.0,0.001636]
[1727971068477,0.338146,60736.0,60729.0,0.001636]
[1727971068704,0.49892229,60736.0,60729.0,0.001636]
[1727971069410,0.63373446,60736.0,60729.0,0.001636]
[1727971069626,0.65673446,60736.0,60729.0,0.001636]
[1727971069870,0.64773446,60736.0,60729.0,0.001636]
[1727971070325,0.64592229,60736.0,60729.0,0.001636]
[1727971070788,0.63292229,60736.0,60729.0,0.001636]
[1727971071022,0.64892229,60736.0,60729.0,0.001636]
[1727971071249,0.63492229,60736.0,60729.0,0.001636]
[1727971071473,0.67867328,60736.0,60729.0,0.001636]
[1727971072435,0.63492229,60736.0,60729.0,0.001636]
[1727971072658,0.62392229,60736.0,60729.0,0.001636]
[1727971072876,0.63792229,60736.0,60729.0,0.001636]
[1727971073096,0.164663,60730.0,60729.0,0.001636]
[1727971073323,0.46943186,60730.0,60729.0,0.001636]
[1727971074090,0.187663,60730.0,60729.0,0.001636]
[1727971074363,0.023,60730.0,60729.0,0.001636]
[1727971074606,0.37172116,60735.0,60729.0,0.001636]
[1727971074880,0.023,60733.0,60729.0,0.001636]
[1727971075126,0.123,60733.0,60729.0,0.1663]
[1727971075365,0.123,60733.0,60729.0,0.001636]
[1727971075366,0.008,60730.0,60729.0,0.001636]
[1727971075610,0.031,60730.0,60729.0,0.001636]
[1727971075848,0.1,60733.0,60729.0,0.001636]
[1727971075849,0.023,60731.0,60729.0,0.001636]
[1727971076144,0.009,60733.0,60729.0,0.001636]
[1727971076390,0.009,60733.0,60732.0,0.164657]
[1727971076632,0.01281,60733.0,60732.0,0.164657]
[1727971077646,0.03581,60733.0,60732.0,0.164657]
[1727971078442,0.023,60732.0,60730.0,0.164662]
[1727971078720,0.187663,60730.0,60729.0,0.001636]
[1727971078977,0.270563,60730.0,60729.0,0.001636]
[1727971079504,0.29637844,60730.0,60729.0,0.001636]
[1727971079959,0.30437844,60730.0,60729.0,0.001636]
[1727971080199,0.29637844,60730.0,60729.0,0.001636]
[1727971080444,0.56726827,60730.0,60729.0,0.001636]
[1727971080933,0.55426827,60730.0,60729.0,0.001636]
[1727971081209,0.56326827,60730.0,60729.0,0.001636]
[1727971081972,0.57426827,60730.0,60729.0,0.001636]
[1727971082231,0.57626827,60730.0,60729.0,0.001636]
[1727971082493,0.57426827,60730.0,60729.0,0.001636]
[1727971083017,0.68026827,60730.0,60729.0,0.001636]
[1727971083616,0.68226827,60730.0,60729.0,0.001636]
[1727971084123,0.68026827,60730.0,60729.0,0.001636]
[1727971086613,0.65445283,60730.0,60729.0,0.001636]
[1727971086869,0.65445283,60730.0,60728.0,0.001636]
[1727971086870,0.287665,60729.0,60728.0,0.001636]
[1727971087158,0.54645171,60729.0,60728.0,0.001636]
[1727971088122,0.56306986,60716.0,60715.0,0.24872116]
[1727971088346,0.18772,60709.0,60708.0,0.24872116]
[1727971088598,0.46948886,60709.0,60708.0,0.24872116]
[1727971088818,0.164733,60704.0,60702.0,0.001636]
[1727971089051,0.64929825,60704.0,60702.0,0.001636]
[1727971089287,0.74929825,60704.0,60702.0,0.001636]
[1727971089549,0.82649825,60704.0,60702.0,0.001636]
[1727971089794,0.89607657,60704.0,60702.0,0.001636]
[1727971090029,0.90607657,60704.0,60702.0,0.001636]
[1727971090252,0.89607657,60704.0,60702.0,0.001636]
[1727971090520,0.166739,60702.0,60701.0,0.001634]
[1727971090755,0.44409945,60702.0,60701.0,0.001634]
[1727971092008,0.383341,60701.0,60697.0,0.001636]
[1727971092263,0.42709199,60701.0,60697.0,0.001636]
[1727971092472,0.385341,60701.0,60697.0,0.001636]
[1727971092967,0.4312808,60701.0,60697.0,0.001636]
[1727971093228,0.28775,60698.0,60697.0,0.001636]
[1727971093491,0.56951886,60698.0,60697.0,0.001636]
[1727971093757,0.61545866,60698.0,60697.0,0.001636]
[1727971094015,0.96547982,60698.0,60697.0,0.001636]
[1727971094284,0.90970557,60698.0,60697.0,0.001636]
[1727971094520,0.90770557,60698.0,60697.0,0.001636]
[1727971095248,0.66881886,60698.0,60697.0,0.001636]
[1727971095501,0.1133,60698.0,60697.0,0.001636]
[1727971095788,0.39205,60698.0,60697.0,0.001636]
[1727971096029,0.2133,60698.0,60697.0,0.001636]
[1727971096257,0.39205,60698.0,60697.0,0.001636]
[1727971096542,0.394451,60698.0,60697.0,0.001636]
[1727971096765,0.41327986,60698.0,60697.0,0.001636]
[1727971096984,0.57102986,60698.0,60697.0,0.001636]
[1727971097213,0.57702986,60698.0,60697.0,0.001636]
[1727971097905,0.551201,60698.0,60697.0,0.001636]
[1727971098137,0.562201,60698.0,60697.0,0.001636]
[1727971098357,0.198151,60698.0,60697.0,0.001636]
[1727971098605,0.187151,60698.0,60697.0,0.001636]
[1727971098837,0.011,60698.0,60697.0,0.166388]
[1727971100216,0.034,60698.0,60697.0,0.166388]
[1727971102466,0.05982519,60698.0,60697.0,0.166388]
[1727971103367,0.05982519,60698.0,60697.0,0.001636]
[1727971103591,0.25542982,60698.0,60697.0,0.001636]
[1727971104662,0.35462982,60698.0,60697.0,0.001636]
[1727971106708,0.42880463,60698.0,60697.0,0.001636]
[1727971106929,0.43080463,60698.0,60697.0,0.001636]
[1727971107596,0.42380463,60698.0,60697.0,0.001636]
[1727971108042,0.43180463,60698.0,60697.0,0.001636]
[1727971108468,0.42380463,60698.0,60697.0,0.001636]
[1727971108683,0.39995,60698.0,60697.0,0.001636]
[1727971108895,0.41395,60698.0,60697.0,0.001636]
[1727971109336,0.023,60698.0,60697.0,0.00158296]
[1727971109567,0.165564,60700.0,60697.0,0.00158296]
[1727971109568,0.000819,60700.0,60697.0,0.00158296]
[1727971109796,0.000819,60700.0,60697.0,0.49583596]
[1727971109797,0.014,60698.0,60697.0,0.49583596]
[1727971110571,0.000819,60700.0,60699.0,0.164747]
[1727971111760,0.032819,60700.0,60699.0,0.164747]
[1727971111970,0.033819,60700.0,60699.0,0.164747]
[1727971112186,0.024819,60700.0,60699.0,0.164747]
[1727971112403,0.0457743,60700.0,60699.0,0.164747]
[1727971112615,0.026819,60700.0,60699.0,0.164747]
[1727971112840,0.003819,60700.0,60699.0,0.24753358]
[1727971113332,0.003819,60700.0,60699.0,0.164747]
[1727971113971,0.002819,60700.0,60699.0,0.164747]
[1727971114412,0.026819,60700.0,60699.0,0.165747]
[1727971114836,0.025819,60700.0,60699.0,0.164747]
[1727971115055,0.023819,60700.0,60699.0,0.164747]
[1727971115303,0.04525688,60700.0,60699.0,0.164747]
[1727971115519,0.024819,60700.0,60699.0,0.165747]
[1727971115767,0.000819,60700.0,60699.0,0.164747]
[1727971115995,0.024819,60700.0,60699.0,0.164747]
[1727971116416,0.000819,60700.0,60699.0,0.164747]
[1727971116627,0.000819,60700.0,60698.0,0.3295]
[1727971116628,0.024819,60700.0,60698.0,0.3295]
[1727971116859,0.27172116,60699.0,60698.0,0.16475]
[1727971117085,0.07656762,60699.0,60698.0,0.16475]
[1727971117307,0.07656762,60699.0,60692.0,0.329528]
[1727971117524,0.07656762,60699.0,60697.0,0.001638]
[1727971117738,0.07656762,60699.0,60698.0,0.16475]
[1727971117958,0.10239275,60699.0,60698.0,0.16475]
[1727971118238,0.023,60699.0,60698.0,0.16475]
[1727971118453,0.023,60699.0,60698.0,0.24565]
[1727971118668,0.000819,60700.0,60699.0,0.164747]
[1727971118902,0.000819,60700.0,60699.0,0.16804136]
[1727971120234,0.000819,60700.0,60699.0,0.164747]
[1727971121105,0.001819,60700.0,60699.0,0.165747]
[1727971121536,0.024819,60700.0,60699.0,0.165747]
[1727971121775,0.024819,60700.0,60699.0,0.164747]
[1727971121776,0.023819,60700.0,60699.0,0.164747]
[1727971122029,0.044674,60700.0,60699.0,0.002]
[1727971122279,0.07049687,60700.0,60699.0,0.001]
[1727971122526,0.07049687,60700.0,60698.0,0.164748]
[1727971122527,0.023,60699.0,60698.0,0.164748]
[1727971123772,0.02664187,60700.0,60699.0,0.164747]
[1727971125016,0.000819,60700.0,60699.0,0.24182609]
[1727971125254,0.000819,60700.0,60699.0,0.4084279]
[1727971125500,0.000819,60700.0,60699.0,0.40513371]
[1727971126013,0.000819,60700.0,60699.0,0.51213371]
[1727971126014,0.001819,60700.0,60699.0,0.51213371]
[1727971126273,0.24872116,60708.0,60702.0,0.002]
[1727971126543,0.24872116,60708.0,60707.0,0.164725]
[1727971126982,0.07405869,60715.0,60706.0,0.28207517]
[1727971127225,0.04938167,60713.0,60706.0,0.28207517]
[1727971127470,0.04800093,60712.0,60711.0,0.164714]
[1727971127986,0.12205962,60712.0,60711.0,0.164714]
[1727971128452,0.04800093,60712.0,60711.0,0.52778917]
[1727971128676,0.04900093,60712.0,60711.0,0.52978917]
[1727971128894,0.12305962,60712.0,60711.0,0.52978917]
[1727971129115,0.12309563,60712.0,60711.0,0.52978917]
[1727971129338,0.04800093,60712.0,60711.0,0.52778917]
[1727971129787,0.04900093,60712.0,60711.0,0.52978917]
[1727971129999,0.09841045,60712.0,60711.0,0.69297588]
[1727971130212,0.09842099,60712.0,60711.0,0.52978917]
[1727971130426,0.09942099,60712.0,60711.0,0.53278917]
[1727971130658,0.05000093,60712.0,60711.0,0.53278917]
[1727971130864,0.04800093,60712.0,60711.0,0.52778917]
[1727971131073,0.12211522,60712.0,60711.0,0.52778917]
[1727971131295,0.12411522,60712.0,60711.0,0.251714]
[1727971131511,0.12414973,60712.0,60711.0,0.251714]
[1727971131735,0.05000093,60712.0,60711.0,0.170714]
[1727971131945,0.148866,60712.0,60711.0,0.170714]
[1727971132189,0.07300093,60712.0,60711.0,0.170714]
[1727971132404,0.19558227,60712.0,60711.0,0.166714]
[1727971132624,0.17158227,60712.0,60711.0,0.44678917]
[1727971132834,0.14789014,60712.0,60711.0,0.61197588]
[1727971133049,0.14789014,60712.0,60711.0,0.44878917]
[1727971133550,0.14789014,60712.0,60711.0,0.166714]
[1727971133762,0.14789014,60712.0,60711.0,0.169714]
[1727971134199,0.04800093,60712.0,60711.0,0.164714]
[1727971134430,0.17258227,60712.0,60711.0,0.169714]
[1727971134648,0.04900093,60712.0,60711.0,0.167714]
[1727971134891,0.12319017,60712.0,60711.0,0.167714]
[1727971135127,0.14891992,60712.0,60711.0,0.169714]
[1727971135576,0.14891992,60712.0,60711.0,0.45178917]
[1727971135826,0.05000093,60712.0,60711.0,0.45178917]
[1727971137064,0.05000093,60712.0,60711.0,0.45378917]
[1727971137285,0.05000093,60712.0,60711.0,0.69727588]
[1727971137709,0.05000093,60712.0,60711.0,0.250014]
[1727971137952,0.09471159,60712.0,60711.0,0.250014]
[1727971138167,0.05000093,60712.0,60711.0,0.169714]
[1727971139969,0.05000093,60712.0,60711.0,0.86369704]
[1727971140198,0.0009854,60720.0,60719.0,0.005]
[1727971140472,0.12464829,60720.0,60719.0,0.51207971]
[1727971140725,0.12464829,60720.0,60719.0,0.84146371]
[1727971140726,0.09892527,60720.0,60719.0,0.84146371]
[1727971140985,0.12366289,60724.0,60723.0,0.264682]
[1727971141259,0.12366289,60724.0,60723.0,0.54675717]
[1727971141260,0.17126313,60724.0,60723.0,0.54675717]
[1727971141485,0.04760024,60724.0,60723.0,0.54675717]
[1727971141711,0.24872116,60730.0,60728.0,0.164668]
[1727971141712,0.04759343,60729.0,60728.0,0.164668]
[1727971142367,0.07059178,60734.0,60733.0,0.164655]
[1727971143895,0.07059178,60734.0,60733.0,0.169655]
[1727971144540,0.07059178,60734.0,60733.0,0.164655]
[1727971145074,0.07059178,60734.0,60733.0,0.174655]
[1727971145286,0.07059178,60734.0,60733.0,0.169655]
[1727971145502,0.04759178,60734.0,60733.0,0.1723799]
[1727971145951,0.04859178,60734.0,60733.0,0.1783799]
[1727971146165,0.17211623,60734.0,60733.0,0.1783799]
[1727971146610,0.1474039,60734.0,60733.0,0.175655]
[1727971146839,0.001,60734.0,60733.0,0.175655]
[1727971147049,0.001,60734.0,60733.0,0.170655]
[1727971147270,0.07508236,60734.0,60733.0,0.170655]
[1727971147476,0.07608236,60734.0,60733.0,0.178655]
[1727971147693,0.07508236,60734.0,60733.0,0.36041446]
[1727971148116,0.002,60734.0,60733.0,0.36641446]
[1727971148327,0.002,60734.0,60733.0,0.36041446]
[1727971148566,0.10008236,60734.0,60733.0,0.179655]
[1727971148949,0.0735131,60734.0,60733.0,0.179655]
[1727971150255,0.0735131,60734.0,60733.0,0.171655]
[1727971150256,0.0725131,60734.0,60733.0,0.171655]
[1727971150688,0.0765131,60734.0,60733.0,0.171655]
[1727971150910,0.19792889,60734.0,60733.0,0.164655]
[1727971151133,0.0705131,60734.0,60733.0,0.167655]
[1727971151401,0.0705131,60734.0,60733.0,0.170655]
[1727971151618,0.07403414,60734.0,60733.0,0.006]
[1727971151836,0.16922583,60734.0,60733.0,0.170655]
[1727971152268,0.07049507,60734.0,60733.0,0.170655]
[1727971152951,0.04749507,60734.0,60733.0,0.170655]
[1727971153197,0.14619406,60734.0,60733.0,0.35841446]
[1727971153695,0.04749507,60734.0,60733.0,0.35841446]
[1727971153970,0.000818,60735.0,60733.0,0.52160117]
[1727971154203,0.000818,60735.0,60734.0,0.41083871]
[1727971154456,0.000818,60735.0,60734.0,0.247652]
[1727971154702,0.000818,60735.0,60734.0,0.164652]
[1727971155197,0.001818,60735.0,60734.0,0.164652]
[1727971155449,0.002818,60735.0,60734.0,0.164652]
[1727971155700,0.002818,60735.0,60734.0,0.32783871]
[1727971155946,0.001818,60735.0,60734.0,0.32783871]
[1727971156945,0.000818,60735.0,60734.0,0.32783871]
[1727971157196,0.001818,60735.0,60734.0,0.176652]
[1727971157441,0.002818,60735.0,60734.0,0.188652]
[1727971158161,0.002818,60735.0,60734.0,0.35183871]
[1727971158423,0.0009887,60741.0,60740.0,0.166636]
[1727971158689,0.24872116,60749.0,60748.0,0.164614]
[1727971158946,0.0739486,60754.0,60750.0,0.002]
[1727971159210,0.37196883,60758.0,60750.0,0.62255517]
[1727971159211,0.24872116,60758.0,60750.0,0.62255517]
[1727971159950,0.0749305,60763.0,60760.0,0.264581]
[1727971159951,0.0739486,60762.0,60760.0,0.264581]
[1727971160206,0.0009819,60763.0,60760.0,0.264581]
[1727971160446,0.0739486,60767.0,60760.0,0.264581]
[1727971160664,0.0739486,60768.0,60760.0,0.264581]
[1727971160927,0.0739486,60772.0,60760.0,0.264581]
[1727971161512,0.0995008,60773.0,60760.0,0.264581]
[1727971161513,0.1734494,60773.0,60760.0,0.264581]
[1727971161749,0.1734494,60773.0,60760.0,0.285581]
[1727971161750,0.0739486,60772.0,60760.0,0.285581]
[1727971161957,0.07378483,60771.0,60760.0,0.285581]
[1727971162401,0.17328563,60773.0,60760.0,0.285581]
[1727971162843,0.023,60765.0,60760.0,0.185581]
[1727971163061,0.023,60762.0,60760.0,0.185581]
[1727971163717,0.122819,60761.0,60760.0,0.185581]
[1727971164415,0.287398,60761.0,60760.0,0.021]
[1727971164660,0.287398,60761.0,60753.0,0.1646]
[1727971164661,0.023,60756.0,60753.0,0.1646]
[1727971164925,0.023,60756.0,60752.0,0.24872116]
[1727971165175,0.023,60757.0,60753.0,0.164599]
[1727971165411,0.023,60757.0,60751.0,0.329208]
[1727971165660,0.023,60757.0,60754.0,0.164597]
[1727971166897,0.023,60757.0,60754.0,0.159597]
[1727971167149,0.023,60755.0,60754.0,0.159597]
[1727971167645,0.023,60756.0,60740.0,0.329269]
[1727971167957,0.023,60753.0,60749.0,0.164609]
[1727971168180,0.164629,60743.0,60738.0,0.16464]
[1727971168449,0.023,60744.0,60739.0,0.24872116]
[1727971168759,0.000819,60761.0,60743.0,0.33042116]
[1727971169012,0.005,60756.0,60755.0,0.164595]
[1727971169279,0.005,60756.0,60755.0,0.16788647]
[1727971169513,0.003,60756.0,60755.0,0.16788647]
[1727971170300,0.24954016,60761.0,60760.0,0.164581]
[1727971170622,0.27254016,60761.0,60760.0,0.164581]
[1727971170840,0.023819,60761.0,60760.0,0.164581]
[1727971171082,0.000819,60761.0,60760.0,0.164581]
[1727971172028,0.000819,60761.0,60760.0,0.172581]
[1727971172363,0.02661602,60761.0,60760.0,0.172581]
[1727971172581,0.02661602,60761.0,60760.0,0.167581]
[1727971173018,0.02761602,60761.0,60760.0,0.174581]
[1727971173271,0.02761602,60761.0,60760.0,0.171581]
[1727971173544,0.02761602,60761.0,60760.0,0.176581]
[1727971173800,0.02761602,60761.0,60760.0,0.171581]
[1727971174045,0.02761602,60761.0,60760.0,0.176581]
[1727971174244,0.02661602,60761.0,60760.0,0.164581]
[1727971174788,0.02761602,60761.0,60760.0,0.175581]
[1727971175281,0.02661602,60761.0,60760.0,0.169581]
[1727971175546,0.02661602,60761.0,60760.0,0.011]
[1727971175547,0.29449502,60761.0,60760.0,0.011]
[1727971175780,0.12991602,60761.0,60760.0,0.011]
[1727971176019,0.268698,60761.0,60760.0,0.011]
[1727971177016,0.268698,60761.0,60760.0,0.006]
[1727971177265,0.05414234,60761.0,60760.0,0.170581]
[1727971177504,0.001819,60761.0,60760.0,0.170581]
[1727971177979,0.005819,60761.0,60760.0,0.16572746]
[1727971178244,0.000819,60761.0,60760.0,0.16572746]
[1727971178484,0.001819,60761.0,60760.0,0.17287223]
[1727971178997,0.000819,60761.0,60760.0,0.17287223]
[1727971179242,0.000819,60761.0,60760.0,0.17887223]
[1727971179243,0.001819,60761.0,60760.0,0.17887223]
[1727971179947,0.001819,60761.0,60760.0,0.175581]
[1727971182096,0.001819,60761.0,60760.0,0.17849885]
[1727971182992,0.001819,60761.0,60760.0,0.175581]
[1727971188290,0.04926389,60761.0,60760.0,0.175581]
[1727971188527,0.15326389,60761.0,60760.0,0.011]
[1727971188759,0.116719,60761.0,60760.0,0.175581]
[1727971189212,0.001819,60761.0,60760.0,0.175581]
[1727971190856,0.001819,60761.0,60760.0,0.17825489]
[1727971191086,0.001819,60761.0,60760.0,0.175581]
[1727971191747,0.001819,60761.0,60760.0,0.45696892]
[1727971192397,0.001819,60761.0,60760.0,0.175581]
[1727971198293,0.177519,60761.0,60760.0,0.175581]
[1727971201015,0.099419,60761.0,60760.0,0.175581]
[1727971202117,0.098419,60761.0,60760.0,0.169581]
[1727971202352,0.099419,60761.0,60760.0,0.170581]
[1727971202530,0.099419,60761.0,60760.0,0.175581]
[1727971202736,0.099419,60761.0,60760.0,0.170581]
[1727971203208,0.099419,60761.0,60760.0,0.175581]
[1727971203470,0.099419,60761.0,60760.0,0.170581]
[1727971203671,0.263998,60761.0,60760.0,0.006]
[1727971203907,0.121419,60761.0,60760.0,0.005]
[1727971204128,0.285998,60761.0,60760.0,0.011]
[1727971204333,0.098419,60761.0,60760.0,0.175581]
[1727971204552,0.000819,60761.0,60760.0,0.3632108]
[1727971204776,0.000819,60761.0,60760.0,0.3572108]
[1727971204992,0.000819,60761.0,60760.0,0.169581]
[1727971205486,0.0946,60760.0,60746.0,0.101636]
[1727971205684,0.0946,60760.0,60748.0,0.24872116]
[1727971205685,0.329194,60755.0,60748.0,0.24872116]
[1727971205888,0.0946,60754.0,60748.0,0.24872116]
[1727971206104,0.0946,60754.0,60753.0,0.1646]
[1727971206729,0.0896,60754.0,60753.0,0.1646]
[1727971207097,0.0896,60754.0,60751.0,0.164605]
[1727971207265,0.0896,60754.0,60746.0,0.001636]
[1727971207472,0.164601,60753.0,60749.0,0.164611]
[1727971207691,0.0896,60754.0,60753.0,0.1646]
[1727971207895,0.08807515,60754.0,60753.0,0.1646]
[1727971208934,0.09107515,60754.0,60753.0,0.1646]
[1727971209614,0.0344,60759.0,60758.0,0.164587]
[1727971210905,0.0926,60758.0,60753.0,0.008]
[1727971211146,0.0926,60758.0,60753.0,0.005]
[1727971211415,0.164598,60754.0,60753.0,0.005]
[1727971211656,0.164595,60755.0,60753.0,0.005]
[1727971211925,0.0926,60758.0,60740.0,0.24872116]
[1727971212158,0.0926,60758.0,60757.0,0.16459]
[1727971213186,0.02579951,60758.0,60757.0,0.16459]
[1727971213507,0.02879951,60758.0,60757.0,0.16559]
[1727971213726,0.02579951,60758.0,60757.0,0.16559]
[1727971213981,0.02579951,60758.0,60757.0,0.16759]
[1727971214274,0.12399951,60758.0,60757.0,0.003]
[1727971214525,0.20569951,60758.0,60757.0,0.16559]
[1727971214742,0.20669951,60758.0,60757.0,0.17359]
[1727971214959,0.20669951,60758.0,60757.0,0.17259]
[1727971215410,0.37128651,60758.0,60757.0,0.015]
[1727971215684,0.45636818,60758.0,60757.0,0.015]
[1727971215913,0.0942,60747.0,60746.0,0.001636]
[1727971216140,0.17,60747.0,60746.0,0.166255]
[1727971217048,0.0942,60747.0,60746.0,0.166255]
[1727971217978,0.0942,60747.0,60746.0,0.001636]
[1727971218274,0.258817,60747.0,60746.0,0.001636]
[1727971218497,0.0942,60747.0,60746.0,0.001636]
[1727971218950,0.258817,60747.0,60746.0,0.005636]
[1727971219393,0.258817,60747.0,60746.0,0.001636]
[1727971219611,0.12100454,60747.0,60746.0,0.001636]
[1727971219839,0.28462154,60747.0,60746.0,0.001636]
[1727971220272,0.28762154,60747.0,60746.0,0.001636]
[1727971220491,0.28762154,60747.0,60746.0,0.005636]
[1727971220727,0.261817,60747.0,60746.0,0.005636]
[1727971220957,0.261817,60747.0,60746.0,0.001636]
[1727971221203,0.09687082,60747.0,60746.0,0.166255]
[1727971221646,0.003,60747.0,60746.0,0.166255]
[1727971222135,0.0794939,60759.0,60755.0,0.329188]
[1727971222356,0.0794939,60759.0,60751.0,0.329209]
[1727971222357,0.0794939,60759.0,60758.0,0.164587]
[1727971222578,0.0785,60759.0,60756.0,0.329184]
[1727971222799,0.329175,60758.0,60746.0,0.001636]
[1727971223037,0.0785,60759.0,60756.0,0.164591]
[1727971223302,0.0785,60759.0,60758.0,0.164587]
[1727971223538,0.000819,60761.0,60757.0,0.329178]
[1727971223774,0.000819,60761.0,60760.0,0.164581]
[1727971224238,0.12431832,60761.0,60760.0,0.164581]
[1727971224461,0.12431832,60761.0,60752.0,0.164603]
[1727971224462,0.329185,60757.0,60752.0,0.164603]
[1727971224680,0.329185,60757.0,60751.0,0.164605]
[1727971224681,0.329189,60756.0,60751.0,0.164605]
[1727971224907,0.006,60759.0,60748.0,0.24872116]
[1727971224908,0.329172,60759.0,60748.0,0.24872116]
[1727971225158,0.427612,60751.0,60746.0,0.001636]
[1727971225388,0.164616,60748.0,60746.0,0.001636]
[1727971225618,0.164617,60747.0,60746.0,0.001636]
[1727971225966,0.18838311,60747.0,60746.0,0.001636]
[1727971226063,0.164617,60747.0,60746.0,0.001636]
[1727971226986,0.187617,60747.0,60746.0,0.001636]
[1727971228157,0.191617,60747.0,60746.0,0.001636]
[1727971228380,0.194617,60747.0,60746.0,0.001636]
[1727971228619,0.190617,60747.0,60746.0,0.001636]
[1727971228851,0.187617,60747.0,60746.0,0.001636]
[1727971229099,0.34343134,60747.0,60746.0,0.001636]
[1727971229319,0.22242206,60747.0,60746.0,0.001636]
[1727971229548,0.21742206,60747.0,60746.0,0.001636]
[1727971230016,0.22042206,60747.0,60746.0,0.001636]
[1727971230229,0.21642206,60747.0,60746.0,0.001636]
[1727971230446,0.190617,60747.0,60746.0,0.001636]
[1727971230665,0.192617,60747.0,60746.0,0.001636]
[1727971231140,0.187617,60747.0,60746.0,0.001636]
[1727971231585,0.191617,60747.0,60746.0,0.001636]
[1727971231816,0.192617,60747.0,60746.0,0.001636]
[1727971232041,0.31402628,60747.0,60746.0,0.001636]
[1727971232270,0.48992628,60747.0,60746.0,0.001636]
[1727971232490,0.363517,60747.0,60746.0,0.001636]
[1727971232721,0.1819,60747.0,60746.0,0.001636]
[1727971232960,0.351517,60747.0,60746.0,0.001636]
[1727971233401,0.37732184,60747.0,60746.0,0.001636]
[1727971233667,0.37132184,60747.0,60746.0,0.001636]
[1727971233860,0.47429782,60747.0,60746.0,0.001636]
[1727971234308,0.20170484,60747.0,60746.0,0.001636]
[1727971234529,0.20970484,60747.0,60746.0,0.002636]
[1727971234748,0.12650484,60747.0,60746.0,0.167255]
[1727971235001,0.12550484,60747.0,60746.0,0.167255]
[1727971235217,0.12550484,60747.0,60746.0,0.002636]
[1727971235451,0.12350484,60747.0,60746.0,0.001636]
[1727971235706,0.12950484,60747.0,60746.0,0.001636]
[1727971235931,0.268317,60747.0,60746.0,0.001636]
[1727971236152,0.1037,60747.0,60746.0,0.001636]
[1727971236378,0.37703212,60747.0,60746.0,0.001636]
[1727971237065,0.40003212,60747.0,60746.0,0.001636]
[1727971238485,0.373917,60747.0,60746.0,0.001636]
[1727971241585,0.011,60747.0,60746.0,0.166255]
[1727971242523,0.005,60747.0,60746.0,0.166255]
[1727971243009,0.011,60747.0,60746.0,0.166255]
[1727971243256,0.02580123,60753.0,60752.0,0.164603]
[1727971244647,0.02580123,60753.0,60752.0,0.3522328]
[1727971244867,0.0009991,60759.0,60757.0,0.16459]
[1727971245093,0.026798,60759.0,60757.0,0.16459]
[1727971245342,0.0257989,60759.0,60757.0,0.16459]
[1727971245991,0.24954016,60761.0,60757.0,0.16459]
[1727971246219,0.000819,60761.0,60757.0,0.16459]
[1727971246437,0.000819,60761.0,60757.0,0.16959]
[1727971246657,0.000819,60761.0,60757.0,0.16459]
[1727971247122,0.001818,60758.0,60757.0,0.17359]
[1727971247606,0.000818,60758.0,60757.0,0.16459]
[1727971247851,0.000818,60758.0,60757.0,0.16959]
[1727971248084,0.000818,60758.0,60757.0,0.17759]
[1727971248314,0.000818,60758.0,60757.0,0.3522198]
[1727971248537,0.000818,60758.0,60757.0,0.3602198]
[1727971248765,0.000818,60758.0,60757.0,0.18059]
[1727971248991,0.000818,60758.0,60757.0,0.17259]
[1727971249251,0.000818,60758.0,60757.0,0.18059]
[1727971249471,0.000818,60758.0,60757.0,0.17259]
[1727971249722,0.000818,60758.0,60757.0,0.18059]
[1727971249960,0.000818,60758.0,60757.0,0.17259]
[1727971250244,0.001818,60758.0,60757.0,0.017]
[1727971250782,0.000818,60758.0,60757.0,0.008]
[1727971251052,0.260905,60758.0,60757.0,0.009]
[1727971251813,0.4475348,60758.0,60757.0,0.013]
[1727971251817,0.164607,60751.0,60747.0,0.164616]
[1727971252100,0.164607,60751.0,60746.0,0.001636]
[1727971252101,0.329205,60753.0,60746.0,0.001636]
[1727971252377,0.164617,60747.0,60746.0,0.001636]
[1727971253904,0.19042145,60747.0,60746.0,0.001636]
[1727971254204,0.02580445,60747.0,60746.0,0.001636]